[Event "*** Titled Tuesday Blitz"]
[Site "Chess.com"]
[Date "2021.02.16"]
[Round "11"]
[White "Mr_Sinigami"]
[Black "lilleper1"]
[Result "0-1"]
[WhiteElo "2661"]
[BlackElo "2835"]
[TimeControl "180+1"]
[EndTime "12:10:35 PST"]
[Termination "lilleper1 won by resignation"]

1. d4 {[%clk 0:03:00.9]} 1... Nf6 {[%clk 0:02:58.4]} 2. Nf3 {[%clk 0:03:01]}
2... b6 {[%clk 0:02:58]} 3. Bf4 {[%clk 0:03:01.1]} 3... Bb7 {[%clk 0:02:57.8]}
4. e3 {[%clk 0:03:01.4]} 4... d6 {[%clk 0:02:57.8]} 5. h3 {[%clk 0:03:01.2]}
5... Nbd7 {[%clk 0:02:58.1]} 6. Be2 {[%clk 0:02:59.7]} 6... g6 {[%clk
0:02:58.6]} 7. O-O {[%clk 0:02:58.9]} 7... Bg7 {[%clk 0:02:59.2]} 8. a4 {[%clk
0:02:57.7]} 8... a5 {[%clk 0:02:57.7]} 9. Na3 {[%clk 0:02:56.5]} 9... O-O {[%clk
0:02:56.2]} 10. c3 {[%clk 0:02:56.4]} 10... Ne4 {[%clk 0:02:56.3]} 11. Bh2
{[%clk 0:02:53.6]} 11... e6 {[%clk 0:02:52]} 12. Nd2 {[%clk 0:02:46.3]} 12...
Nxd2 {[%clk 0:02:51.2]} 13. Qxd2 {[%clk 0:02:46.3]} 13... Qg5 {[%clk 0:02:48.9]}
14. Bg3 {[%clk 0:02:40.6]} 14... Nf6 {[%clk 0:02:45.8]} 15. h4 {[%clk
0:02:34.4]} 15... Qf5 {[%clk 0:02:44.2]} 16. f3 {[%clk 0:02:30.1]} 16... e5
{[%clk 0:02:41.3]} 17. Nb5 {[%clk 0:02:16.6]} 17... Rac8 {[%clk 0:02:37.2]} 18.
e4 {[%clk 0:02:04.3]} 18... Qe6 {[%clk 0:02:30.9]} 19. dxe5 {[%clk 0:01:48.6]}
19... dxe5 {[%clk 0:02:30.4]} 20. Rfd1 {[%clk 0:01:48.4]} 20... Nh5 {[%clk
0:02:27.6]} 21. Bf2 {[%clk 0:01:45.8]} 21... Nf4 {[%clk 0:02:26.2]} 22. Bf1
{[%clk 0:01:45.9]} 22... Bh6 {[%clk 0:02:24.7]} 23. Qd7 {[%clk 0:01:41.7]} 23...
Qf6 {[%clk 0:02:17.9]} 24. Na7 {[%clk 0:01:27.6]} 24... Ra8 {[%clk 0:02:16.2]}
25. Nb5 {[%clk 0:01:26.9]} 25... Ne6 {[%clk 0:01:59.8]} 26. Nxc7 {[%clk
0:01:11.5]} 26... Rad8 {[%clk 0:01:56.8]} 27. Nxe6 {[%clk 0:01:09.4]} 27... Rxd7
{[%clk 0:01:53.7]} 28. Rxd7 {[%clk 0:01:10.3]} 28... Qxe6 {[%clk 0:01:28.8]} 29.
Rxb7 {[%clk 0:01:10]} 29... Rd8 {[%clk 0:01:28.1]} 30. Rxb6 {[%clk 0:01:09.6]}
30... Qe7 {[%clk 0:01:27]} 31. Bc4 {[%clk 0:01:06.9]} 31... Rd2 {[%clk
0:01:24.4]} 32. Rb8+ {[%clk 0:01:02.5]} 32... Kg7 {[%clk 0:01:24.7]} 33. Bd5
{[%clk 0:01:01.9]} 33... Rxf2 {[%clk 0:01:11]} 34. Kxf2 {[%clk 0:01:01.7]} 34...
Qa7+ {[%clk 0:01:11]} 35. Kf1 {[%clk 0:00:33.8]} 35... Qxb8 {[%clk 0:01:10.4]}
36. b4 {[%clk 0:00:33.9]} 36... axb4 {[%clk 0:01:05.9]} 37. cxb4 {[%clk
0:00:33.8]} 37... Qxb4 {[%clk 0:01:05.7]} 38. a5 {[%clk 0:00:33.9]} 38... Be3
{[%clk 0:01:05.1]} 39. Ra2 {[%clk 0:00:30.5]} 39... Ba7 {[%clk 0:00:55.1]} 40.
a6 {[%clk 0:00:29.9]} 40... Qd4 {[%clk 0:00:54.6]} 41. Ke2 {[%clk 0:00:28.2]}
41... Qf2+ {[%clk 0:00:51.4]} 42. Kd3 {[%clk 0:00:27.7]} 42... Qxh4 {[%clk
0:00:51.3]} 43. Kc4 {[%clk 0:00:25.6]} 43... Qe7 {[%clk 0:00:48.9]} 44. Ra5
{[%clk 0:00:25.3]} 44... Qc7+ {[%clk 0:00:47.2]} 45. Kb4 {[%clk 0:00:23.1]}
45... Qb6+ {[%clk 0:00:45.9]} 46. Ka4 {[%clk 0:00:21.5]} 46... Qd4+ {[%clk
0:00:46]} 47. Kb3 {[%clk 0:00:21.4]} 47... Qd3+ {[%clk 0:00:44.7]} 48. Kb4
{[%clk 0:00:21.3]} 48... Qd2+ {[%clk 0:00:43.6]} 49. Ka4 {[%clk 0:00:21.2]}
49... Qxg2 {[%clk 0:00:40.8]} 50. Rb5 {[%clk 0:00:21]} 50... Qc2+ {[%clk
0:00:39.8]} 51. Kb4 {[%clk 0:00:20.5]} 51... h5 {[%clk 0:00:37.3]} 52. Rb7
{[%clk 0:00:20.3]} 52... Qc5+ {[%clk 0:00:36.8]} 53. Kb3 {[%clk 0:00:20.5]}
53... h4 {[%clk 0:00:36.9]} 54. Rxf7+ {[%clk 0:00:20.2]} 54... Kh6 {[%clk
0:00:37.3]} 55. Rc7 {[%clk 0:00:18.2]} 55... Qxc7 {[%clk 0:00:36.5]} 0-1

[Event "*** Titled Tuesday Blitz"]
[Site "Chess.com"]
[Date "2021.02.16"]
[Round "11"]
[White "eldur16"]
[Black "SanchezKelvin"]
[Result "1-0"]
[WhiteElo "2498"]
[BlackElo "2395"]
[TimeControl "180+1"]
[EndTime "12:10:35 PST"]
[Termination "eldur16 won by resignation"]

1. Nf3 {[%clk 0:03:00.9]} 1... c5 {[%clk 0:02:58.9]} 2. g3 {[%clk 0:03:00.1]}
2... g6 {[%clk 0:02:58.5]} 3. Bg2 {[%clk 0:02:59.7]} 3... Bg7 {[%clk 0:02:59.4]}
4. O-O {[%clk 0:02:56.5]} 4... Nc6 {[%clk 0:02:59.3]} 5. c4 {[%clk 0:02:55.5]}
5... Nf6 {[%clk 0:02:58.8]} 6. d4 {[%clk 0:02:55]} 6... O-O {[%clk 0:02:58]} 7.
Nc3 {[%clk 0:02:51.5]} 7... d6 {[%clk 0:02:55.5]} 8. dxc5 {[%clk 0:02:45.8]}
8... dxc5 {[%clk 0:02:54]} 9. Bf4 {[%clk 0:02:45.6]} 9... Be6 {[%clk 0:02:50.5]}
10. Ne5 {[%clk 0:02:39.2]} 10... Nxe5 {[%clk 0:02:48.3]} 11. Bxe5 {[%clk
0:02:38.3]} 11... Bxc4 {[%clk 0:02:39.8]} 12. Bxb7 {[%clk 0:02:35.6]} 12... Qxd1
{[%clk 0:02:38.1]} 13. Raxd1 {[%clk 0:02:33.6]} 13... Rad8 {[%clk 0:02:37.5]}
14. b3 {[%clk 0:02:30.4]} 14... Be6 {[%clk 0:02:33.7]} 15. Na4 {[%clk
0:02:28.7]} 15... c4 {[%clk 0:02:28.5]} 16. Nc5 {[%clk 0:02:27.3]} 16... cxb3
{[%clk 0:02:18.1]} 17. Nxe6 {[%clk 0:02:23]} 17... fxe6 {[%clk 0:02:17.2]} 18.
axb3 {[%clk 0:02:22.6]} 18... Rxd1 {[%clk 0:02:10]} 19. Rxd1 {[%clk 0:02:21.2]}
19... Ng4 {[%clk 0:02:07]} 20. Bxg7 {[%clk 0:02:15.3]} 20... Kxg7 {[%clk
0:02:06.3]} 21. f3 {[%clk 0:02:13.9]} 21... Nf6 {[%clk 0:01:49.2]} 22. Ba6
{[%clk 0:02:10.8]} 22... Nd5 {[%clk 0:01:41.1]} 23. Kf2 {[%clk 0:01:54.4]} 23...
Kf6 {[%clk 0:01:34.4]} 24. Ra1 {[%clk 0:01:49]} 24... Nb6 {[%clk 0:01:21.3]} 25.
Bb5 {[%clk 0:01:39.1]} 25... Ra8 {[%clk 0:01:16.9]} 26. Bd3 {[%clk 0:01:34.7]}
26... a5 {[%clk 0:01:14.5]} 27. Bb5 {[%clk 0:01:31.4]} 27... Nd5 {[%clk
0:01:11.8]} 28. Rc1 {[%clk 0:01:21.3]} 28... Rb8 {[%clk 0:01:07.3]} 29. Rc5
{[%clk 0:01:16]} 29... Nc3 {[%clk 0:00:53.2]} 30. Ba4 {[%clk 0:01:15.4]} 30...
Nxa4 {[%clk 0:00:38]} 31. bxa4 {[%clk 0:01:13.6]} 31... Rb2 {[%clk 0:00:38.4]}
32. Rxa5 {[%clk 0:01:12.4]} 32... Ra2 {[%clk 0:00:38.6]} 33. Ra7 {[%clk
0:01:08.1]} 33... Ra1 {[%clk 0:00:38]} 34. h4 {[%clk 0:01:07.3]} 34... h5 {[%clk
0:00:37.1]} 35. Ke3 {[%clk 0:01:05.7]} 35... Rg1 {[%clk 0:00:36.5]} 36. Kf2
{[%clk 0:00:55.5]} 36... Ra1 {[%clk 0:00:35.9]} 37. a5 {[%clk 0:00:54.6]} 37...
Kf7 {[%clk 0:00:32.8]} 38. Ke3 {[%clk 0:00:53.3]} 38... Rg1 {[%clk 0:00:32]} 39.
a6 {[%clk 0:00:51.1]} 39... Rxg3 {[%clk 0:00:26.7]} 40. Kf2 {[%clk 0:00:48.2]}
40... Rh3 {[%clk 0:00:25.9]} 41. Kg2 {[%clk 0:00:47.5]} 41... Rxh4 {[%clk
0:00:25.8]} 42. e4 {[%clk 0:00:47.1]} 42... g5 {[%clk 0:00:17]} 43. Rxe7+ {[%clk
0:00:42.9]} 43... Kxe7 {[%clk 0:00:15.9]} 44. a7 {[%clk 0:00:42.9]} 44... Rf4
{[%clk 0:00:12.7]} 45. a8=Q {[%clk 0:00:42.4]} 45... Rf8 {[%clk 0:00:12.8]} 46.
Qb7+ {[%clk 0:00:41.4]} 46... Kf6 {[%clk 0:00:13.1]} 47. Qh7 {[%clk 0:00:41]}
47... h4 {[%clk 0:00:10.7]} 48. Qh6+ {[%clk 0:00:40.5]} 48... Kf7 {[%clk
0:00:11]} 49. e5 {[%clk 0:00:39.6]} 49... Ke7 {[%clk 0:00:03.3]} 50. Qxg5+
{[%clk 0:00:39.2]} 50... Ke8 {[%clk 0:00:02.9]} 51. Qxh4 {[%clk 0:00:39.1]} 1-0

[Event "*** Titled Tuesday Blitz"]
[Site "Chess.com"]
[Date "2021.02.16"]
[Round "11"]
[White "Nozdrachev_Leonid"]
[Black "Margency"]
[Result "0-1"]
[WhiteElo "2536"]
[BlackElo "2684"]
[TimeControl "180+1"]
[EndTime "12:10:36 PST"]
[Termination "Margency won by resignation"]

1. e4 {[%clk 0:03:00.9]} 1... c5 {[%clk 0:02:59.8]} 2. c3 {[%clk 0:03:00.3]}
2... d6 {[%clk 0:02:59.8]} 3. d4 {[%clk 0:02:59.8]} 3... Nf6 {[%clk 0:02:59.6]}
4. Bd3 {[%clk 0:02:59]} 4... g6 {[%clk 0:02:59.4]} 5. Nf3 {[%clk 0:02:58.5]}
5... Bg7 {[%clk 0:02:58.9]} 6. h3 {[%clk 0:02:57.8]} 6... O-O {[%clk 0:02:58.6]}
7. O-O {[%clk 0:02:57.3]} 7... cxd4 {[%clk 0:02:57]} 8. cxd4 {[%clk 0:02:56.8]}
8... d5 {[%clk 0:02:57.6]} 9. e5 {[%clk 0:02:54.4]} 9... Ne4 {[%clk 0:02:57.9]}
10. Qe2 {[%clk 0:02:53.2]} 10... Nc6 {[%clk 0:02:54.8]} 11. Be3 {[%clk
0:02:50.8]} 11... f6 {[%clk 0:02:53.7]} 12. exf6 {[%clk 0:02:43]} 12... exf6
{[%clk 0:02:52.5]} 13. Bxe4 {[%clk 0:02:40.8]} 13... dxe4 {[%clk 0:02:52.3]} 14.
Nfd2 {[%clk 0:02:41.7]} 14... f5 {[%clk 0:02:47.6]} 15. Nb3 {[%clk 0:02:36.6]}
15... Be6 {[%clk 0:02:43.5]} 16. Nc5 {[%clk 0:02:34.5]} 16... Bf7 {[%clk
0:02:39]} 17. Nxb7 {[%clk 0:02:30.8]} 17... Qb6 {[%clk 0:02:38]} 18. Nd6 {[%clk
0:02:20.3]} 18... Nxd4 {[%clk 0:02:20.2]} 19. Bxd4 {[%clk 0:02:16.9]} 19... Qxd4
{[%clk 0:02:20]} 20. Nxf7 {[%clk 0:02:13.2]} 20... Rxf7 {[%clk 0:02:19.2]} 21.
Nc3 {[%clk 0:02:10.1]} 21... Rc8 {[%clk 0:02:17.7]} 22. Rad1 {[%clk 0:02:06.1]}
22... Qc4 {[%clk 0:02:08.5]} 23. Rd8+ {[%clk 0:02:03.8]} 23... Rf8 {[%clk
0:02:08.6]} 24. Rxf8+ {[%clk 0:01:56.3]} 24... Kxf8 {[%clk 0:02:05]} 25. Qd2
{[%clk 0:01:46.9]} 25... Qd4 {[%clk 0:01:46.2]} 26. Qc2 {[%clk 0:01:36.5]} 26...
e3 {[%clk 0:01:34.2]} 27. fxe3 {[%clk 0:01:35.7]} 27... Qxe3+ {[%clk 0:01:34]}
28. Kh1 {[%clk 0:01:36.2]} 28... Rd8 {[%clk 0:01:33.1]} 29. Ne4 {[%clk
0:01:15.2]} 29... Qd3 {[%clk 0:01:21.6]} 30. Qxd3 {[%clk 0:00:48.7]} 30... Rxd3
{[%clk 0:01:19.8]} 31. Nc5 {[%clk 0:00:48.7]} 31... Re3 {[%clk 0:01:16.3]} 32.
b4 {[%clk 0:00:40.4]} 32... Re2 {[%clk 0:01:14.2]} 33. a4 {[%clk 0:00:38.2]}
33... Bd4 {[%clk 0:01:08.5]} 34. Rd1 {[%clk 0:00:37.5]} 34... Bf2 {[%clk
0:01:05.7]} 35. Nd3 {[%clk 0:00:24]} 35... Bg3 {[%clk 0:01:00.5]} 36. b5 {[%clk
0:00:21.2]} 36... Ra2 {[%clk 0:00:56]} 37. Nc5 {[%clk 0:00:20.4]} 37... h5
{[%clk 0:00:49.7]} 38. Ne6+ {[%clk 0:00:16.1]} 38... Ke7 {[%clk 0:00:47.1]} 39.
Nc5 {[%clk 0:00:15.7]} 39... h4 {[%clk 0:00:45.3]} 40. Rd7+ {[%clk 0:00:14]}
40... Kf6 {[%clk 0:00:44.2]} 41. Rd1 {[%clk 0:00:13.8]} 41... Ke5 {[%clk
0:00:40.4]} 42. Nd3+ {[%clk 0:00:13.1]} 42... Ke4 {[%clk 0:00:37.3]} 43. Nc5+
{[%clk 0:00:11]} 43... Ke3 {[%clk 0:00:36.9]} 44. Kg1 {[%clk 0:00:10.5]} 44...
Ke2 {[%clk 0:00:30.7]} 45. Rb1 {[%clk 0:00:08.6]} 45... Bf2+ {[%clk 0:00:29.6]}
46. Kh1 {[%clk 0:00:08.6]} 46... Bxc5 {[%clk 0:00:30.2]} 47. Rc1 {[%clk
0:00:07.4]} 47... Be3 {[%clk 0:00:26.6]} 48. Rb1 {[%clk 0:00:07.2]} 48... Rxa4
{[%clk 0:00:25.7]} 0-1

[Event "*** Titled Tuesday Blitz"]
[Site "Chess.com"]
[Date "2021.02.16"]
[Round "11"]
[White "Jospem"]
[Black "Witik"]
[Result "1-0"]
[WhiteElo "3009"]
[BlackElo "2781"]
[TimeControl "180+1"]
[EndTime "12:10:37 PST"]
[Termination "Jospem won on time"]

1. e4 {[%clk 0:03:00.9]} 1... c6 {[%clk 0:02:59.4]} 2. Nf3 {[%clk 0:03:01.1]}
2... d5 {[%clk 0:02:59.2]} 3. d3 {[%clk 0:03:02]} 3... Bg4 {[%clk 0:02:57.7]} 4.
Nbd2 {[%clk 0:03:01.7]} 4... e6 {[%clk 0:02:54.9]} 5. h3 {[%clk 0:03:01.8]} 5...
Bh5 {[%clk 0:02:54.8]} 6. Qe2 {[%clk 0:03:01.6]} 6... a5 {[%clk 0:02:50.8]} 7.
g4 {[%clk 0:03:00.4]} 7... Bg6 {[%clk 0:02:50.4]} 8. h4 {[%clk 0:03:01.1]} 8...
h6 {[%clk 0:02:41.5]} 9. Rg1 {[%clk 0:02:53.7]} 9... Nf6 {[%clk 0:02:07.7]} 10.
h5 {[%clk 0:02:40.6]} 10... Bh7 {[%clk 0:02:07.6]} 11. g5 {[%clk 0:02:41.3]}
11... hxg5 {[%clk 0:01:39]} 12. Nxg5 {[%clk 0:02:41.4]} 12... Bg8 {[%clk
0:01:39.3]} 13. Ndf3 {[%clk 0:02:14.6]} 13... Nbd7 {[%clk 0:01:24.8]} 14. Bd2
{[%clk 0:02:11.7]} 14... a4 {[%clk 0:01:15.6]} 15. a3 {[%clk 0:02:08]} 15...
Rxh5 {[%clk 0:01:09.8]} 16. O-O-O {[%clk 0:02:07.2]} 16... g6 {[%clk 0:01:05.2]}
17. Bh3 {[%clk 0:01:47.4]} 17... Qe7 {[%clk 0:00:56.5]} 18. Bb4 {[%clk
0:01:31.5]} 18... c5 {[%clk 0:00:54.4]} 19. Bd2 {[%clk 0:01:31.6]} 19... d4
{[%clk 0:00:52.6]} 20. e5 {[%clk 0:01:23.9]} 20... Nd5 {[%clk 0:00:51.9]} 21.
Bg4 {[%clk 0:01:22]} 21... Rh8 {[%clk 0:00:47]} 22. Ne4 {[%clk 0:01:21]} 22...
Ra6 {[%clk 0:00:35.8]} 23. Rh1 {[%clk 0:01:15.8]} 23... Rxh1 {[%clk 0:00:34.5]}
24. Rxh1 {[%clk 0:01:16.7]} 24... Bg7 {[%clk 0:00:29.5]} 25. Bh6 {[%clk
0:00:50.6]} 25... Qf8 {[%clk 0:00:21.1]} 26. Qd2 {[%clk 0:00:45.6]} 26... Kd8
{[%clk 0:00:14.1]} 27. Nd6 {[%clk 0:00:28.5]} 27... Rxd6 {[%clk 0:00:12]} 28.
Bxg7 {[%clk 0:00:26]} 28... Qxg7 {[%clk 0:00:12.9]} 29. exd6 {[%clk 0:00:26.5]}
29... b6 {[%clk 0:00:11.1]} 30. Qh6 {[%clk 0:00:17.5]} 30... Qxh6+ {[%clk
0:00:06.5]} 31. Rxh6 {[%clk 0:00:18.4]} 31... Ke8 {[%clk 0:00:07.3]} 32. Kd2
{[%clk 0:00:18.8]} 32... Kf8 {[%clk 0:00:07.6]} 33. c3 {[%clk 0:00:19]} 33...
Kg7 {[%clk 0:00:07.1]} 34. Rh1 {[%clk 0:00:18.9]} 34... dxc3+ {[%clk 0:00:07]}
35. bxc3 {[%clk 0:00:19.8]} 35... f5 {[%clk 0:00:07.4]} 36. Bh3 {[%clk
0:00:19.6]} 36... e5 {[%clk 0:00:07.2]} 37. Rg1 {[%clk 0:00:20]} 37... Kf6
{[%clk 0:00:07.4]} 38. Bxf5 {[%clk 0:00:16.4]} 38... Kxf5 {[%clk 0:00:03.7]} 39.
Nh4+ {[%clk 0:00:17]} 39... Ke6 {[%clk 0:00:02.9]} 40. Rxg6+ {[%clk 0:00:17.5]}
40... N7f6 {[%clk 0:00:03.4]} 41. Nf3 {[%clk 0:00:14.7]} 41... Kxd6 {[%clk
0:00:03.2]} 42. c4 {[%clk 0:00:13.1]} 42... Bf7 {[%clk 0:00:02.3]} 43. Rh6
{[%clk 0:00:13.3]} 1-0

[Event "*** Titled Tuesday Blitz"]
[Site "Chess.com"]
[Date "2021.02.16"]
[Round "11"]
[White "frenchpin"]
[Black "Arseniy_Nesterov"]
[Result "1-0"]
[WhiteElo "2513"]
[BlackElo "2757"]
[TimeControl "180+1"]
[EndTime "12:10:37 PST"]
[Termination "frenchpin won by resignation"]

1. e4 {[%clk 0:03:00.9]} 1... e5 {[%clk 0:03:00.1]} 2. Nf3 {[%clk 0:03:00]} 2...
Nc6 {[%clk 0:03:00.4]} 3. Bc4 {[%clk 0:03:00.5]} 3... Bc5 {[%clk 0:03:00]} 4. c3
{[%clk 0:03:00.9]} 4... Nf6 {[%clk 0:03:00.5]} 5. d4 {[%clk 0:03:01.3]} 5...
exd4 {[%clk 0:03:00.7]} 6. cxd4 {[%clk 0:03:02.2]} 6... Bb4+ {[%clk 0:03:01.2]}
7. Bd2 {[%clk 0:03:02.8]} 7... Bxd2+ {[%clk 0:03:00.8]} 8. Nbxd2 {[%clk
0:03:03.7]} 8... d5 {[%clk 0:03:01.4]} 9. exd5 {[%clk 0:03:03.9]} 9... Nxd5
{[%clk 0:03:02.3]} 10. O-O {[%clk 0:03:04.3]} 10... O-O {[%clk 0:03:02.1]} 11.
Ne5 {[%clk 0:02:56.7]} 11... Nb6 {[%clk 0:02:52.1]} 12. Nxc6 {[%clk 0:02:48.3]}
12... bxc6 {[%clk 0:02:53]} 13. Bd3 {[%clk 0:02:48.4]} 13... Qxd4 {[%clk
0:02:52.3]} 14. Qc2 {[%clk 0:02:48.7]} 14... g6 {[%clk 0:02:41.1]} 15. Nb3
{[%clk 0:02:47.2]} 15... Qf6 {[%clk 0:02:40]} 16. Rac1 {[%clk 0:02:42.4]} 16...
Rd8 {[%clk 0:02:28]} 17. Be4 {[%clk 0:02:33.3]} 17... Ba6 {[%clk 0:02:21.2]} 18.
Rfe1 {[%clk 0:02:28.7]} 18... Bc4 {[%clk 0:02:18]} 19. Na5 {[%clk 0:02:20.4]}
19... Bd5 {[%clk 0:01:44.9]} 20. Nxc6 {[%clk 0:02:19.3]} 20... Bxe4 {[%clk
0:01:43.9]} 21. Rxe4 {[%clk 0:02:11.6]} 21... Rd6 {[%clk 0:01:43]} 22. g3 {[%clk
0:01:57.1]} 22... Nd5 {[%clk 0:01:34]} 23. a3 {[%clk 0:01:42.5]} 23... a5 {[%clk
0:01:27.5]} 24. Re5 {[%clk 0:01:18.4]} 24... Ra6 {[%clk 0:01:06.3]} 25. Re8+
{[%clk 0:01:11.8]} 25... Kg7 {[%clk 0:01:06.4]} 26. Ne5 {[%clk 0:01:01]} 26...
h5 {[%clk 0:00:58.1]} 27. Kg2 {[%clk 0:00:58.3]} 27... Re6 {[%clk 0:00:26.5]}
28. Rxe6 {[%clk 0:00:51.4]} 28... Rxe6 {[%clk 0:00:27.4]} 29. Nf3 {[%clk
0:00:45.7]} 29... Rb6 {[%clk 0:00:26.4]} 30. b3 {[%clk 0:00:39.6]} 30... c6
{[%clk 0:00:17.4]} 31. Qc4 {[%clk 0:00:36.4]} 31... Ne7 {[%clk 0:00:10.3]} 32.
h4 {[%clk 0:00:31.4]} 32... Rb5 {[%clk 0:00:10.1]} 33. Qc3 {[%clk 0:00:25.9]}
33... Qxc3 {[%clk 0:00:04.9]} 34. Rxc3 {[%clk 0:00:26.8]} 34... c5 {[%clk
0:00:05.3]} 35. Ne5 {[%clk 0:00:23]} 35... Nd5 {[%clk 0:00:05.1]} 36. Rf3 {[%clk
0:00:21.9]} 36... f6 {[%clk 0:00:04.6]} 37. Nc4 {[%clk 0:00:21.8]} 37... a4
{[%clk 0:00:02.1]} 38. bxa4 {[%clk 0:00:19.9]} 38... Rb8 {[%clk 0:00:02.7]} 39.
a5 {[%clk 0:00:19.8]} 39... Nc7 {[%clk 0:00:02.1]} 40. Rd3 {[%clk 0:00:17.8]}
40... Ne6 {[%clk 0:00:01.4]} 41. Rd7+ {[%clk 0:00:15.1]} 41... Kh6 {[%clk
0:00:02]} 42. a6 {[%clk 0:00:14.8]} 42... Rb3 {[%clk 0:00:01.3]} 43. a7 {[%clk
0:00:12.9]} 1-0

[Event "*** Titled Tuesday Blitz"]
[Site "Chess.com"]
[Date "2021.02.16"]
[Round "11"]
[White "rugbyclub"]
[Black "Euge_chess"]
[Result "1-0"]
[WhiteElo "2273"]
[BlackElo "2099"]
[TimeControl "180+1"]
[EndTime "12:10:37 PST"]
[Termination "rugbyclub won on time"]

1. d4 {[%clk 0:03:00.9]} 1... Nf6 {[%clk 0:02:59.5]} 2. Nf3 {[%clk 0:02:59.3]}
2... e6 {[%clk 0:02:59.8]} 3. Bf4 {[%clk 0:02:58]} 3... c5 {[%clk 0:02:59.7]} 4.
e3 {[%clk 0:02:58.2]} 4... d5 {[%clk 0:02:59.2]} 5. c3 {[%clk 0:02:57]} 5... Nc6
{[%clk 0:02:59.6]} 6. Nbd2 {[%clk 0:02:56.8]} 6... c4 {[%clk 0:02:59.5]} 7. Be2
{[%clk 0:02:51.3]} 7... Bd6 {[%clk 0:02:59]} 8. Bg3 {[%clk 0:02:50.5]} 8... O-O
{[%clk 0:02:57.7]} 9. O-O {[%clk 0:02:49.2]} 9... Bxg3 {[%clk 0:02:51.6]} 10.
hxg3 {[%clk 0:02:48.1]} 10... Qc7 {[%clk 0:02:50.5]} 11. b3 {[%clk 0:02:47]}
11... cxb3 {[%clk 0:02:49.3]} 12. axb3 {[%clk 0:02:46.8]} 12... e5 {[%clk
0:02:47.4]} 13. Rc1 {[%clk 0:02:44.4]} 13... e4 {[%clk 0:02:43.6]} 14. Nh2
{[%clk 0:02:43.9]} 14... Qd6 {[%clk 0:02:17.1]} 15. c4 {[%clk 0:02:40.2]} 15...
Be6 {[%clk 0:02:12.1]} 16. f4 {[%clk 0:02:25.6]} 16... exf3 {[%clk 0:02:09]} 17.
Rxf3 {[%clk 0:02:24.7]} 17... Rfe8 {[%clk 0:01:54.4]} 18. Nhf1 {[%clk
0:02:17.3]} 18... Bg4 {[%clk 0:01:48.8]} 19. Rf4 {[%clk 0:02:16.7]} 19... Bxe2
{[%clk 0:01:44.2]} 20. Qxe2 {[%clk 0:02:17.1]} 20... dxc4 {[%clk 0:01:30.3]} 21.
bxc4 {[%clk 0:02:10.2]} 21... Rad8 {[%clk 0:01:08.5]} 22. Qf3 {[%clk 0:02:04.7]}
22... Qa3 {[%clk 0:00:47.4]} 23. Rb1 {[%clk 0:01:53.6]} 23... Qe7 {[%clk
0:00:45.3]} 24. g4 {[%clk 0:01:53.3]} 24... h6 {[%clk 0:00:34.7]} 25. Rb3 {[%clk
0:01:34.5]} 25... Nh7 {[%clk 0:00:34.2]} 26. Ng3 {[%clk 0:01:27.4]} 26... Ng5
{[%clk 0:00:33.9]} 27. Qf2 {[%clk 0:01:20.3]} 27... g6 {[%clk 0:00:32.3]} 28.
Nde4 {[%clk 0:01:02.9]} 28... Kg7 {[%clk 0:00:16.5]} 29. Nf6 {[%clk 0:00:44.4]}
29... Rf8 {[%clk 0:00:11.1]} 30. Nd5 {[%clk 0:00:44.8]} 30... Qe6 {[%clk
0:00:07.8]} 31. Rxb7 {[%clk 0:00:41.9]} 31... Rde8 {[%clk 0:00:01.8]} 32. Rf6
{[%clk 0:00:25.9]} 32... Ne4 {[%clk 0:00:02.7]} 33. Rxe6 {[%clk 0:00:19.7]}
33... Ng5 {[%clk 0:00:03.6]} 34. Rxe8 {[%clk 0:00:19.1]} 34... Rxe8 {[%clk
0:00:03.1]} 35. Rc7 {[%clk 0:00:17.2]} 35... Re6 {[%clk 0:00:02.6]} 36. Nf4
{[%clk 0:00:14]} 36... Rf6 {[%clk 0:00:02]} 37. Qb2 {[%clk 0:00:10.9]} 37... Ne7
{[%clk 0:00:01.7]} 38. d5 {[%clk 0:00:10.4]} 38... Nf5 {[%clk 0:00:01.4]} 39.
gxf5 {[%clk 0:00:09.7]} 39... gxf5 {[%clk 0:00:02.3]} 40. Nxf5+ {[%clk
0:00:09.9]} 1-0

[Event "*** Titled Tuesday Blitz"]
[Site "Chess.com"]
[Date "2021.02.16"]
[Round "11"]
[White "mr65"]
[Black "jd001"]
[Result "0-1"]
[WhiteElo "2136"]
[BlackElo "2269"]
[TimeControl "180+1"]
[EndTime "12:10:38 PST"]
[Termination "jd001 won on time"]

1. e4 {[%clk 0:02:54.1]} 1... Nf6 {[%clk 0:02:59.1]} 2. e5 {[%clk 0:02:53]} 2...
Nd5 {[%clk 0:02:58.5]} 3. d4 {[%clk 0:02:53.2]} 3... d6 {[%clk 0:02:58.3]} 4.
Nf3 {[%clk 0:02:53.2]} 4... Bg4 {[%clk 0:02:57.3]} 5. Be2 {[%clk 0:02:53.2]}
5... e6 {[%clk 0:02:57.2]} 6. c4 {[%clk 0:02:52.8]} 6... Nb6 {[%clk 0:02:56.6]}
7. exd6 {[%clk 0:02:52.9]} 7... cxd6 {[%clk 0:02:56.2]} 8. O-O {[%clk
0:02:51.6]} 8... Nc6 {[%clk 0:02:55.8]} 9. b3 {[%clk 0:02:49.4]} 9... d5 {[%clk
0:02:54.4]} 10. c5 {[%clk 0:02:47.3]} 10... Nc8 {[%clk 0:02:54.4]} 11. Nc3
{[%clk 0:02:33]} 11... Be7 {[%clk 0:02:52.1]} 12. h3 {[%clk 0:02:31.6]} 12...
Bh5 {[%clk 0:02:51.3]} 13. Rb1 {[%clk 0:02:31.2]} 13... a6 {[%clk 0:02:49]} 14.
b4 {[%clk 0:02:29.9]} 14... O-O {[%clk 0:02:48.9]} 15. a4 {[%clk 0:02:28.7]}
15... Bf6 {[%clk 0:02:48.6]} 16. Be3 {[%clk 0:02:22.8]} 16... N8e7 {[%clk
0:02:47.7]} 17. b5 {[%clk 0:02:21.6]} 17... axb5 {[%clk 0:02:47.4]} 18. axb5
{[%clk 0:02:20.7]} 18... Na5 {[%clk 0:02:47.1]} 19. b6 {[%clk 0:02:05.2]} 19...
Nf5 {[%clk 0:02:45.9]} 20. Nb5 {[%clk 0:02:04.1]} 20... Nc4 {[%clk 0:02:34.6]}
21. Qc1 {[%clk 0:01:51.9]} 21... Bxf3 {[%clk 0:02:28.2]} 22. Bxf3 {[%clk
0:01:50.8]} 22... Ra2 {[%clk 0:02:26.4]} 23. Rd1 {[%clk 0:01:38.4]} 23... Nfxe3
{[%clk 0:02:25.4]} 24. fxe3 {[%clk 0:01:37.4]} 24... Bg5 {[%clk 0:02:25.5]} 25.
Rb3 {[%clk 0:01:29]} 25... Qf6 {[%clk 0:02:22.4]} 26. Qc3 {[%clk 0:01:20.3]}
26... Bxe3+ {[%clk 0:02:05.3]} 27. Kh1 {[%clk 0:01:18.9]} 27... Bf4 {[%clk
0:01:22.4]} 28. Ra1 {[%clk 0:01:07.1]} 28... Rxa1+ {[%clk 0:01:17]} 29. Qxa1
{[%clk 0:01:06]} 29... Qh4 {[%clk 0:01:16.6]} 30. Be2 {[%clk 0:00:58.7]} 30...
Qf2 {[%clk 0:01:11.1]} 31. Bxc4 {[%clk 0:00:57.2]} 31... dxc4 {[%clk 0:01:10.5]}
32. Rf3 {[%clk 0:00:56.1]} 32... Qd2 {[%clk 0:01:08.6]} 33. Rxf4 {[%clk
0:00:46.4]} 33... Qxf4 {[%clk 0:01:07.3]} 34. Nd6 {[%clk 0:00:41.2]} 34... Rb8
{[%clk 0:00:39.9]} 35. Nxc4 {[%clk 0:00:39.3]} 35... f6 {[%clk 0:00:30.1]} 36.
Nd6 {[%clk 0:00:38]} 36... e5 {[%clk 0:00:28.4]} 37. Nxb7 {[%clk 0:00:32.6]}
37... exd4 {[%clk 0:00:25.9]} 38. c6 {[%clk 0:00:27.6]} 38... d3 {[%clk
0:00:22.6]} 39. c7 {[%clk 0:00:16.3]} 39... Re8 {[%clk 0:00:16.5]} 40. Nc5
{[%clk 0:00:10.2]} 40... d2 {[%clk 0:00:15.8]} 41. Qg1 {[%clk 0:00:01.4]} 41...
Qc4 {[%clk 0:00:11.8]} 0-1